[Event "23rd ETCC Women 2021"]
[Site "Catez"]
[Date "2021.11.15"]
[Round "4.33"]
[White "Goossens, Hanne"]
[Black "Cramling, Pia"]
[Result "1/2-1/2"]
[ECO "B44"]
[WhiteElo "2126"]
[BlackElo "2457"]
[Annotator "ChessBase"]
[PlyCount "85"]
[EventDate "2021.11.08"]
[EventType "team-tourn"]
[EventCountry "SLO"]
[SourceTitle "playchess.com"]
[Source "ChessBase"]
[SourceQuality "1"]
[WhiteTeam "Belgium"]
[BlackTeam "Sweden"]
[WhiteTeamCountry "BEL"]
[BlackTeamCountry "SWE"]
[TimeControl "40/5400+30:1800+30"]

1. e4 {[%emt 0:00:03]} c5 {[%emt 0:00:07]} 2. Nf3 {[%emt 0:00:07]} e6 {[%emt 0:
00:09]} 3. d4 {[%emt 0:00:05]} cxd4 {[%emt 0:00:04]} 4. Nxd4 {[%emt 0:00:06]}
Nc6 {[%emt 0:00:08]} 5. c4 {[%emt 0:01:30]} Nf6 {[%emt 0:05:24]} 6. Nc3 {
[%emt 0:00:18]} Bb4 {[%emt 0:01:17]} 7. Nxc6 {[%emt 0:00:47]} bxc6 {[%emt 0:00:
44]} 8. Bd3 {[%emt 0:00:23]} e5 {[%emt 0:09:13]} 9. O-O {[%emt 0:00:28]} Bc5 {
[%emt 0:02:24]} 10. Qe2 {[%emt 0:05:04]} d6 {[%emt 0:12:38]} 11. Be3 {[%emt 0:
10:24]} Bxe3 {[%emt 0:01:11]} 12. Qxe3 {[%emt 0:00:18]} O-O {[%emt 0:00:16]}
13. Rfd1 {[%emt 0:02:38]} Qb6 {[%emt 0:05:18]} 14. c5 {[%emt 0:12:08]} Qxb2 {
[%emt 0:06:26]} 15. Bf1 {[%emt 0:02:34]} Ng4 {[%emt 0:12:02]} 16. Qd2 {[%emt 0:
14:09]} Qxd2 {[%emt 0:00:27]} 17. Rxd2 {[%emt 0:00:05]} dxc5 {[%emt 0:00:10]}
18. Na4 {[%emt 0:03:12]} f5 {[%emt 0:05:29]} 19. Bc4+ {[%emt 0:05:37]} Kh8 {
[%emt 0:00:06]} 20. Nxc5 {[%emt 0:01:20]} fxe4 {[%emt 0:01:14]} 21. Nxe4 {
[%emt 0:02:31]} Bf5 {[%emt 0:00:45]} 22. Re1 {[%emt 0:09:11]} Bg6 {[%emt 0:12:
05]} 23. f3 {[%emt 0:03:59]} Nf6 {[%emt 0:00:12]} 24. Nc5 {[%emt 0:02:42]} Rfe8
{[%emt 0:03:07]} 25. Rde2 {[%emt 0:01:58]} e4 {[%emt 0:00:57]} 26. Nxe4 {
[%emt 0:02:15]} Nxe4 {[%emt 0:00:46]} 27. fxe4 {[%emt 0:00:08]} Re5 {[%emt 0:
00:07]} 28. Bb3 {[%emt 0:06:24]} Rd8 {[%emt 0:08:46]} 29. Rc1 {[%emt 0:02:46]}
Rxe4 {[%emt 0:02:59]} 30. Rf2 {[%emt 0:00:40]} h6 {[%emt 0:07:30]} 31. Rxc6 {
[%emt 0:02:07]} Re1+ {[%emt 0:00:06]} 32. Rf1 {[%emt 0:00:05]} Rxf1+ {[%emt 0:
00:06]} 33. Kxf1 {[%emt 0:00:05]} Be4 {[%emt 0:00:04]} 34. Re6 {[%emt 0:02:57]}
Rf8+ {[%emt 0:01:16]} 35. Kg1 {[%emt 0:00:21]} Bd3 {[%emt 0:00:02]} 36. Re1 {
[%emt 0:00:33]} a6 {[%emt 0:01:32]} 37. Rd1 {[%emt 0:01:18]} Be2 {[%emt 0:00:
29]} 38. Re1 {[%emt 0:00:54]} Bb5 {[%emt 0:00:09]} 39. a4 {[%emt 0:02:40]} Bd3
{[%emt 0:00:13]} 40. Rd1 {[%emt 0:01:10]} Be2 {[%emt 0:00:05]} 41. Re1 {
[%emt 0:30:47]} Bd3 {[%emt 0:31:45]} 42. Rd1 {[%emt 0:00:47]} Be2 {[%emt 0:00:
21]} 43. Re1 {[%emt 0:00:10]} 1/2-1/2

[Event "23rd ETCC Women 2021"]
[Site "Catez"]
[Date "2021.11.15"]
[Round "4.34"]
[White "Agrest, Inna"]
[Black "Barbier, Wiebke"]
[Result "1-0"]
[ECO "C41"]
[WhiteElo "2258"]
[BlackElo "1964"]
[Annotator "NA"]
[PlyCount "81"]
[EventDate "2021.11.08"]
[EventType "team-tourn"]
[EventCountry "SLO"]
[SourceTitle "playchess.com"]
[Source "ChessBase"]
[SourceQuality "1"]
[WhiteTeam "Sweden"]
[BlackTeam "Belgium"]
[WhiteTeamCountry "SWE"]
[BlackTeamCountry "BEL"]
[TimeControl "40/5400+30:1800+30"]

1. e4 {[%emt 0:00:03]} d6 {[%emt 0:00:02]} 2. d4 {[%emt 0:00:12]} Nf6 {[%emt 0:
00:03]} 3. Nc3 {[%emt 0:00:19]} e5 {[%emt 0:00:02]} 4. Nf3 {[%emt 0:00:14]}
Nbd7 {[%emt 0:00:03]} 5. Rg1 {[%emt 0:00:16]} Be7 {[%emt 0:10:10]} 6. g4 {
[%emt 0:00:19]} exd4 {[%emt 0:18:20]} 7. Nxd4 {[%emt 0:00:59]} Ne5 {[%emt 0:07:
44]} 8. g5 {[%emt 0:15:51]} Nfd7 {[%emt 0:14:14]} 9. f4 {[%emt 0:04:12]} Ng6 {
[%emt 0:05:33]} 10. Be3 {[%emt 0:02:04]} Nc5 {[%emt 0:09:50]} 11. Qf3 {[%emt 0:
10:35]} a6 {[%emt 0:04:14]} 12. O-O-O {[%emt 0:01:48]} Bd7 {[%emt 0:05:13]} 13.
Nf5 {[%emt 0:04:28]} Ne6 {[%emt 0:06:34]} 14. h4 {[%emt 0:01:30]} h6 {[%emt 0:
06:28]} 15. h5 {[%emt 0:06:44]} Ngxf4 {[%emt 0:04:24]} 16. Nxe7 {[%emt 0:00:48]
} Qxe7 {[%emt 0:00:41]} 17. Bxf4 {[%emt 0:00:16]} hxg5 {[%emt 0:02:01]} 18. Nd5
{[%emt 0:01:09]} Qd8 {[%emt 0:00:21]} 19. Be3 {[%emt 0:00:24]} c5 {[%emt 0:02:
27]} 20. Bh3 {[%emt 0:01:17]} Qa5 {[%emt 0:00:57]} 21. Bxe6 {[%emt 0:02:43]}
Bxe6 {[%emt 0:00:18]} 22. Bxg5 {[%emt 0:00:40]} Rc8 {[%emt 0:01:01]} 23. h6 {
[%emt 0:01:37]} gxh6 {[%emt 0:00:37]} 24. Qf6 {[%emt 0:00:38]} Kd7 {[%emt 0:00:
10]} 25. Bf4 {[%emt 0:04:55]} Rhe8 {[%emt 0:00:31]} 26. a3 {[%emt 0:01:21]} b5
{[%emt 0:00:36]} 27. Qxh6 {[%emt 0:03:11]} b4 {[%emt 0:00:24]} 28. Nf6+ {
[%emt 0:03:57]} Kc6 {[%emt 0:00:29]} 29. Rxd6+ {[%emt 0:01:39]} Kb7 {[%emt 0:
00:16]} 30. Nxe8 {[%emt 0:00:59]} bxa3 {[%emt 0:00:43]} 31. bxa3 {[%emt 0:01:
34]} Qxa3+ {[%emt 0:00:22]} 32. Kd2 {[%emt 0:00:15]} Qb4+ {[%emt 0:00:25]} 33.
Ke3 {[%emt 0:05:13]} Rxe8 {[%emt 0:00:34]} 34. Qf6 {[%emt 0:01:35]} c4 {
[%emt 0:00:56]} 35. Qd4 {[%emt 0:01:18]} Re7 {[%emt 0:00:34]} 36. c3 {[%emt 0:
02:46]} Qb2 {[%emt 0:00:27]} 37. Qd2 {[%emt 0:00:40]} Qb5 {[%emt 0:00:24]} 38.
Qd4 {[%emt 0:01:43]} Qb2 {[%emt 0:00:19]} 39. Rd8 {[%emt 0:00:28]} Bc8 {
[%emt 0:00:54]} 40. Rxc8 {[%emt 0:01:15]} Kxc8 {[%emt 0:00:27]} 41. Rg8+ {
[%emt 0:30:12]} 1-0

[Event "23rd ETCC Women 2021"]
[Site "Catez"]
[Date "2021.11.15"]
[Round "4.35"]
[White "Vanduyfhuys, Daria"]
[Black "Andric, Jelena"]
[Result "1-0"]
[ECO "A84"]
[WhiteElo "1933"]
[BlackElo "2041"]
[Annotator "NA"]
[PlyCount "116"]
[EventDate "2021.11.08"]
[EventType "team-tourn"]
[EventCountry "SLO"]
[SourceTitle "playchess.com"]
[Source "ChessBase"]
[SourceQuality "1"]
[WhiteTeam "Belgium"]
[BlackTeam "Sweden"]
[WhiteTeamCountry "BEL"]
[BlackTeamCountry "SWE"]
[TimeControl "40/5400+30:1800+30"]

1. d4 {[%emt 0:00:06]} e6 {[%emt 0:00:22]} 2. c4 {[%emt 0:00:19]} b6 {[%emt 0:
00:16]} 3. g3 {[%emt 0:00:34]} Bb7 {[%emt 0:01:01]} 4. Nf3 {[%emt 0:00:09]} f5
{[%emt 0:01:18]} 5. Bg2 {[%emt 0:00:17]} Nf6 {[%emt 0:00:45]} 6. O-O {[%emt 0:
00:38]} Be7 {[%emt 0:01:07]} 7. b3 {[%emt 0:01:17]} O-O {[%emt 0:00:43]} 8. Bb2
{[%emt 0:00:12]} d5 {[%emt 0:14:05]} 9. Nbd2 {[%emt 0:04:43]} Ne4 {[%emt 0:02:
42]} 10. Nxe4 {[%emt 0:03:18]} fxe4 {[%emt 0:01:57]} 11. Ne5 {[%emt 0:00:34]}
c5 {[%emt 0:12:53]} 12. f3 {[%emt 0:03:56]} exf3 {[%emt 0:10:18]} 13. Bxf3 {
[%emt 0:00:43]} cxd4 {[%emt 0:01:55]} 14. Bxd4 {[%emt 0:00:21]} Nc6 {[%emt 0:
03:56]} 15. Nxc6 {[%emt 0:01:36]} Bxc6 {[%emt 0:00:06]} 16. Rc1 {[%emt 0:11:53]
} Ba3 {[%emt 0:08:26]} 17. Rc3 {[%emt 0:02:29]} Qg5 {[%emt 0:07:52]} 18. Re3 {
[%emt 0:03:52]} Rf4 {[%emt 0:03:56]} 19. Re5 {[%emt 0:03:16]} Rf5 {[%emt 0:10:
22]} 20. Rxe6 {[%emt 0:02:09]} Bd7 {[%emt 0:02:25]} 21. Re3 {[%emt 0:05:09]}
Raf8 {[%emt 0:04:07]} 22. Bxd5+ {[%emt 0:01:08]} Rxd5 {[%emt 0:01:56]} 23. cxd5
{[%emt 0:01:45]} Qxd5 {[%emt 0:00:30]} 24. Rxf8+ {[%emt 0:01:20]} Bxf8 {
[%emt 0:00:06]} 25. Qd3 {[%emt 0:00:49]} Bc6 {[%emt 0:02:03]} 26. Qc4 {[%emt 0:
01:41]} Qxc4 {[%emt 0:01:15]} 27. bxc4 {[%emt 0:00:05]} Kf7 {[%emt 0:00:52]}
28. Kf2 {[%emt 0:02:40]} g6 {[%emt 0:00:16]} 29. Rc3 {[%emt 0:01:48]} Bb4 {
[%emt 0:00:21]} 30. Re3 {[%emt 0:01:50]} Bd6 {[%emt 0:01:11]} 31. a3 {[%emt 0:
00:37]} h5 {[%emt 0:01:20]} 32. Rc3 {[%emt 0:02:08]} Be7 {[%emt 0:01:24]} 33.
c5 {[%emt 0:05:01]} b5 {[%emt 0:00:14]} 34. e4 {[%emt 0:00:17]} Ke6 {[%emt 0:
01:49]} 35. Kf3 {[%emt 0:05:41]} a5 {[%emt 0:01:43]} 36. Kf4 {[%emt 0:00:38]}
g5+ {[%emt 0:01:23]} 37. Ke3 {[%emt 0:00:09]} Bf8 {[%emt 0:00:42]} 38. Rc2 {
[%emt 0:00:28]} h4 {[%emt 0:01:09]} 39. gxh4 {[%emt 0:01:08]} gxh4 {[%emt 0:00:
06]} 40. Rg2 {[%emt 0:00:54]} Bh6+ {[%emt 0:00:22]} 41. Kf3 {[%emt 0:30:28]}
Bc1 {[%emt 0:31:08]} 42. Rg6+ {[%emt 0:02:28]} Kd7 {[%emt 0:00:00]} 43. Rd6+ {
[%emt 0:00:00]} Kc7 {[%emt 0:00:00]} 44. Be5 {[%emt 0:00:00]} Kb7 {[%emt 0:00:
00]} 45. Rd3 {[%emt 0:00:00]} Ka6 {[%emt 0:00:00]} 46. Bf4 {[%emt 0:00:00]} Bb2
{[%emt 0:00:00]} 47. Bd2 {[%emt 0:00:00]} Be5 {[%emt 0:00:00]} 48. h3 {[%emt 0:
00:00]} b4 {[%emt 0:00:00]} 49. axb4 {[%emt 0:00:00]} a4 {[%emt 0:00:00]} 50.
Bc3 {[%emt 0:00:00]} Bxc3 {[%emt 0:00:00]} 51. Rxc3 {[%emt 0:00:00]} Kb5 {
[%emt 0:00:00]} 52. Kf4 {[%emt 0:00:00]} Kxb4 {[%emt 0:00:00]} 53. Rc1 {
[%emt 0:00:00]} a3 {[%emt 0:00:00]} 54. e5 {[%emt 0:00:00]} a2 {[%emt 0:00:00]}
55. e6 {[%emt 0:00:00]} Kb3 {[%emt 0:00:00]} 56. e7 {[%emt 0:00:00]} Kb2 {
[%emt 0:00:00]} 57. Re1 {[%emt 0:00:00]} Be8 {[%emt 0:00:00]} 58. Ke5 {[%emt 0:
00:00]} Bg6 {[%emt 0:00:00]} 1-0

[Event "23rd ETCC Women 2021"]
[Site "Catez"]
[Date "2021.11.15"]
[Round "4.36"]
[White "Zaritovskaja, Margarita"]
[Black "Barbier, Astrid"]
[Result "1-0"]
[ECO "B72"]
[WhiteElo "2040"]
[BlackElo "1915"]
[Annotator "ChessBase"]
[PlyCount "117"]
[EventDate "2021.11.08"]
[EventType "team-tourn"]
[EventCountry "SLO"]
[SourceTitle "playchess.com"]
[Source "ChessBase"]
[SourceQuality "1"]
[WhiteTeam "Sweden"]
[BlackTeam "Belgium"]
[WhiteTeamCountry "SWE"]
[BlackTeamCountry "BEL"]
[TimeControl "40/5400+30:1800+30"]

1. e4 {[%emt 0:00:02]} c5 {[%emt 0:00:06]} 2. Nf3 {[%emt 0:00:06]} Nc6 {
[%emt 0:00:08]} 3. d4 {[%emt 0:01:13]} cxd4 {[%emt 0:00:14]} 4. Nxd4 {[%emt 0:
00:05]} g6 {[%emt 0:00:16]} 5. Nc3 {[%emt 0:01:28]} Bg7 {[%emt 0:00:14]} 6. Be3
{[%emt 0:00:33]} Nf6 {[%emt 0:00:11]} 7. Bc4 {[%emt 0:01:41]} Qa5 {[%emt 0:00:
31]} 8. O-O {[%emt 0:06:18]} O-O {[%emt 0:00:25]} 9. Nb3 {[%emt 0:07:02]} Qc7 {
[%emt 0:03:30]} 10. f4 {[%emt 0:04:17]} d6 {[%emt 0:01:30]} 11. h3 {[%emt 0:04:
57]} Bd7 {[%emt 0:02:47]} 12. Qe1 {[%emt 0:05:19]} Rfe8 {[%emt 0:06:31]} 13.
Rd1 {[%emt 0:02:26]} a6 {[%emt 0:05:26]} 14. a4 {[%emt 0:02:12]} Nb4 {[%emt 0:
03:01]} 15. Bd3 {[%emt 0:04:06]} Rac8 {[%emt 0:08:55]} 16. Qf2 {[%emt 0:03:42]}
Bc6 {[%emt 0:04:53]} 17. Bb6 {[%emt 0:07:13]} Qb8 {[%emt 0:07:33]} 18. a5 {
[%emt 0:05:25]} Bd7 {[%emt 0:10:19]} 19. Ba7 {[%emt 0:19:57]} Qc7 {[%emt 0:01:
17]} 20. Bb6 {[%emt 0:00:51]} Qb8 {[%emt 0:00:11]} 21. Rfe1 {[%emt 0:05:55]}
Be6 {[%emt 0:04:24]} 22. Nd4 {[%emt 0:06:01]} Bc4 {[%emt 0:04:29]} 23. Bxc4 {
[%emt 0:01:40]} Rxc4 {[%emt 0:00:09]} 24. e5 {[%emt 0:00:52]} Nfd5 {[%emt 0:07:
28]} 25. Nxd5 {[%emt 0:01:27]} Nxd5 {[%emt 0:00:13]} 26. e6 {[%emt 0:01:51]} f5
{[%emt 0:08:37]} 27. b3 {[%emt 0:02:17]} Rb4 {[%emt 0:05:54]} 28. Qd2 {[%emt 0:
00:43]} Rxb6 {[%emt 0:00:27]} 29. axb6 {[%emt 0:00:26]} Nxb6 {[%emt 0:00:21]}
30. c4 {[%emt 0:01:23]} Rc8 {[%emt 0:03:31]} 31. Qf2 {[%emt 0:01:13]} Na8 {
[%emt 0:02:14]} 32. Nf3 {[%emt 0:00:23]} Rc5 {[%emt 0:04:37]} 33. Qh4 {[%emt 0:
00:57]} Qf8 {[%emt 0:01:17]} 34. Ng5 {[%emt 0:00:30]} h6 {[%emt 0:00:14]} 35.
Nf3 {[%emt 0:01:20]} Nc7 {[%emt 0:00:48]} 36. Qf2 {[%emt 0:01:01]} Ne8 {
[%emt 0:01:21]} 37. Rd5 {[%emt 0:00:50]} Bc3 {[%emt 0:02:43]} 38. Rxc5 {
[%emt 0:00:54]} dxc5 {[%emt 0:01:08]} 39. Rd1 {[%emt 0:00:19]} Bb4 {[%emt 0:01:
04]} 40. Rd8 {[%emt 0:00:25]} Kh7 {[%emt 0:00:50]} 41. Qe2 {[%emt 0:03:29]} Ba5
{[%emt 0:06:49]} 42. Rc8 {[%emt 0:01:58]} Bc7 {[%emt 0:01:03]} 43. Qd2 {
[%emt 0:00:39]} Bd6 {[%emt 0:01:46]} 44. Ne5 {[%emt 0:02:37]} Qh8 {[%emt 0:02:
12]} 45. Qd1 {[%emt 0:09:20]} Bxe5 {[%emt 0:05:18]} 46. fxe5 {[%emt 0:00:04]}
b6 {[%emt 0:03:09]} 47. Qd5 {[%emt 0:00:34]} g5 {[%emt 0:00:43]} 48. g4 {
[%emt 0:05:00]} h5 {[%emt 0:02:53]} 49. gxf5 {[%emt 0:00:32]} g4 {[%emt 0:01:
30]} 50. hxg4 {[%emt 0:02:46]} Qg8 {[%emt 0:00:59]} 51. Qe4 {[%emt 0:00:39]}
Qg5 {[%emt 0:03:13]} 52. f6+ {[%emt 0:03:52]} Kh6 {[%emt 0:00:13]} 53. Rxe8 {
[%emt 0:02:01]} Qc1+ {[%emt 0:00:31]} 54. Kg2 {[%emt 0:00:26]} Qd2+ {[%emt 0:
01:27]} 55. Kg3 {[%emt 0:01:40]} h4+ {[%emt 0:01:20]} 56. Kh3 {[%emt 0:00:13]}
Qc3+ {[%emt 0:00:31]} 57. Kxh4 {[%emt 0:00:16]} exf6 {[%emt 0:00:38]} 58. Rh8+
{[%emt 0:00:10]} Kg7 {[%emt 0:00:02]} 59. Qh7# {[%emt 0:00:07]} 1-0

[Event "23rd ETCC Women 2021"]
[Site "Catez"]
[Date "2021.11.15"]
[Round "4.37"]
[White "Pilsova, Karolina"]
[Black "Zaksaite, Salomeja"]
[Result "0-1"]
[ECO "A16"]
[WhiteElo "2281"]
[BlackElo "2250"]
[Annotator "ChessBase"]
[PlyCount "102"]
[EventDate "2021.11.08"]
[EventType "team-tourn"]
[EventCountry "SLO"]
[SourceTitle "playchess.com"]
[Source "ChessBase"]
[SourceQuality "1"]
[WhiteTeam "Czech Republic"]
[BlackTeam "Lithuania"]
[WhiteTeamCountry "CZE"]
[BlackTeamCountry "LTU"]
[TimeControl "40/5400+30:1800+30"]

1. Nf3 {[%emt 0:00:03]} Nf6 {[%emt 0:00:58]} 2. c4 {[%emt 0:00:15]} g6 {
[%emt 0:00:13]} 3. Nc3 {[%emt 0:00:19]} d5 {[%emt 0:00:04]} 4. cxd5 {[%emt 0:
00:09]} Nxd5 {[%emt 0:00:03]} 5. e4 {[%emt 0:00:13]} Nxc3 {[%emt 0:00:20]} 6.
dxc3 {[%emt 0:00:08]} Qxd1+ {[%emt 0:00:05]} 7. Kxd1 {[%emt 0:00:05]} f6 {
[%emt 0:00:25]} 8. Be3 {[%emt 0:00:25]} e5 {[%emt 0:00:14]} 9. Nd2 {[%emt 0:00:
30]} Be6 {[%emt 0:02:15]} 10. Bc4 {[%emt 0:02:41]} Bxc4 {[%emt 0:00:12]} 11.
Nxc4 {[%emt 0:00:03]} Nd7 {[%emt 0:00:12]} 12. Kc2 {[%emt 0:09:26]} Bc5 {
[%emt 0:10:00]} 13. Rhd1 {[%emt 0:07:25]} Bxe3 {[%emt 0:04:13]} 14. Nxe3 {
[%emt 0:00:37]} O-O-O {[%emt 0:02:56]} 15. b4 {[%emt 0:02:35]} Nb6 {[%emt 0:21:
49]} 16. Rxd8+ {[%emt 0:14:39]} Rxd8 {[%emt 0:00:47]} 17. a4 {[%emt 0:00:16]}
c6 {[%emt 0:02:46]} 18. a5 {[%emt 0:09:19]} Nd7 {[%emt 0:00:59]} 19. Rf1 {
[%emt 0:00:25]} Kc7 {[%emt 0:02:04]} 20. Nc4 {[%emt 0:06:06]} Re8 {[%emt 0:07:
43]} 21. Rd1 {[%emt 0:04:25]} Re6 {[%emt 0:00:46]} 22. Rd3 {[%emt 0:02:54]} Re7
{[%emt 0:03:25]} 23. h4 {[%emt 0:04:53]} f5 {[%emt 0:14:25]} 24. exf5 {[%emt 0:
10:12]} gxf5 {[%emt 0:04:53]} 25. Nd6 {[%emt 0:04:38]} f4 {[%emt 0:04:56]} 26.
Ne4 {[%emt 0:01:17]} b6 {[%emt 0:01:06]} 27. g4 {[%emt 0:04:14]} fxg3 {[%emt 0:
01:12]} 28. fxg3 {[%emt 0:00:10]} c5 {[%emt 0:02:21]} 29. b5 {[%emt 0:04:39]}
bxa5 {[%emt 0:01:59]} 30. Rd6 {[%emt 0:00:20]} Nb6 {[%emt 0:08:42]} 31. Rc6+ {
[%emt 0:00:55]} Kd8 {[%emt 0:00:28]} 32. Rxc5 {[%emt 0:02:16]} a4 {[%emt 0:01:
05]} 33. Rc6 {[%emt 0:02:35]} Rc7 {[%emt 0:01:19]} 34. Rd6+ {[%emt 0:04:34]}
Ke7 {[%emt 0:00:50]} 35. Rh6 {[%emt 0:00:14]} Kf8 {[%emt 0:00:07]} 36. g4 {
[%emt 0:01:58]} Nd5 {[%emt 0:01:47]} 37. Kb2 {[%emt 0:01:55]} Rc4 {[%emt 0:00:
16]} 38. Nf6 {[%emt 0:00:38]} Nxc3 {[%emt 0:00:54]} 39. Rxh7 {[%emt 0:00:35]}
Nxb5 {[%emt 0:00:09]} 40. Nd7+ {[%emt 0:00:40]} Kg8 {[%emt 0:00:25]} 41. Nf6+ {
[%emt 0:30:26]} Kf8 {[%emt 0:03:01]} 42. g5 {[%emt 0:00:00]} a3+ {[%emt 0:10:
30]} 43. Kb3 {[%emt 0:00:00]} Rc3+ {[%emt 0:01:12]} 44. Kb4 {[%emt 0:00:00]}
Rf3 {[%emt 0:11:17]} 45. Rh8+ {[%emt 0:00:00]} Kf7 {[%emt 0:00:40]} 46. Rd8 {
[%emt 0:00:29]} a2 {[%emt 0:00:30]} 47. Rd1 {[%emt 0:00:38]} Nd4 {[%emt 0:00:
15]} 48. Nd7 {[%emt 0:00:43]} Rb3+ {[%emt 0:00:47]} 49. Kc5 {[%emt 0:00:40]}
Rb1 {[%emt 0:03:08]} 50. Nxe5+ {[%emt 0:00:30]} Ke6 {[%emt 0:00:19]} 51. Rxd4 {
[%emt 0:01:21]} Kxe5 {[%emt 0:01:37]} 0-1

[Event "23rd ETCC Women 2021"]
[Site "Catez"]
[Date "2021.11.15"]
[Round "4.38"]
[White "Baginskaite, Kamile"]
[Black "Petrova, Kristyna"]
[Result "1/2-1/2"]
[ECO "D76"]
[WhiteElo "2100"]
[BlackElo "2275"]
[Annotator "ChessBase"]
[PlyCount "115"]
[EventDate "2021.11.08"]
[EventType "team-tourn"]
[EventCountry "SLO"]
[SourceTitle "playchess.com"]
[Source "ChessBase"]
[SourceQuality "1"]
[WhiteTeam "Lithuania"]
[BlackTeam "Czech Republic"]
[WhiteTeamCountry "LTU"]
[BlackTeamCountry "CZE"]
[TimeControl "40/5400+30:1800+30"]

1. d4 {[%emt 0:00:10]} Nf6 {[%emt 0:00:05]} 2. c4 {[%emt 0:00:11]} g6 {[%emt 0:
00:07]} 3. Nf3 {[%emt 0:00:14]} Bg7 {[%emt 0:00:11]} 4. g3 {[%emt 0:00:06]} d5
{[%emt 0:00:07]} 5. cxd5 {[%emt 0:00:11]} Nxd5 {[%emt 0:00:06]} 6. Bg2 {
[%emt 0:00:04]} Nb6 {[%emt 0:00:27]} 7. Nc3 {[%emt 0:03:59]} Nc6 {[%emt 0:00:
12]} 8. e3 {[%emt 0:00:16]} O-O {[%emt 0:00:14]} 9. O-O {[%emt 0:00:06]} a5 {
[%emt 0:00:13]} 10. d5 {[%emt 0:02:51]} Nb4 {[%emt 0:00:15]} 11. e4 {[%emt 0:
00:17]} f5 {[%emt 0:00:20]} 12. Ng5 {[%emt 0:01:33]} h6 {[%emt 0:04:48]} 13. a3
{[%emt 0:07:37]} hxg5 {[%emt 0:03:23]} 14. axb4 {[%emt 0:00:08]} axb4 {[%emt 0:
02:57]} 15. Rxa8 {[%emt 0:01:43]} Nxa8 {[%emt 0:00:38]} 16. Na2 {[%emt 0:01:45]
} Nb6 {[%emt 0:07:01]} 17. Bxg5 {[%emt 0:18:12]} fxe4 {[%emt 0:12:54]} 18. Bxe4
{[%emt 0:14:40]} Bf5 {[%emt 0:00:12]} 19. Bg2 {[%emt 0:00:53]} Qd7 {[%emt 0:25:
59]} 20. Nxb4 {[%emt 0:05:42]} Rf7 {[%emt 0:03:53]} 21. b3 {[%emt 0:09:46]} Bh3
{[%emt 0:05:43]} 22. Qd2 {[%emt 0:05:21]} Qf5 {[%emt 0:07:33]} 23. Bxh3 {
[%emt 0:03:13]} Qxh3 {[%emt 0:00:02]} 24. Re1 {[%emt 0:04:29]} Qf5 {[%emt 0:01:
43]} 25. Bxe7 {[%emt 0:03:37]} Bc3 {[%emt 0:00:22]} 26. Qxc3 {[%emt 0:09:12]}
Qxf2+ {[%emt 0:00:06]} 27. Kh1 {[%emt 0:00:02]} Rxe7 {[%emt 0:00:15]} 28. Nd3 {
[%emt 0:00:07]} Qf3+ {[%emt 0:06:53]} 29. Kg1 {[%emt 0:00:01]} Nxd5 {[%emt 0:
00:47]} 30. Qc4 {[%emt 0:00:59]} Rxe1+ {[%emt 0:02:32]} 31. Nxe1 {[%emt 0:01:
56]} Qe3+ {[%emt 0:00:10]} 32. Kf1 {[%emt 0:02:51]} Qe6 {[%emt 0:00:46]} 33.
Ng2 {[%emt 0:00:31]} c6 {[%emt 0:00:50]} 34. h4 {[%emt 0:01:28]} Kh7 {[%emt 0:
01:33]} 35. Kg1 {[%emt 0:00:46]} Qe5 {[%emt 0:03:13]} 36. Kh2 {[%emt 0:00:11]}
Kg7 {[%emt 0:00:23]} 37. Qg4 {[%emt 0:00:39]} Nf6 {[%emt 0:03:15]} 38. Qf3 {
[%emt 0:00:47]} Qb2 {[%emt 0:02:44]} 39. Kh3 {[%emt 0:00:37]} Qb1 {[%emt 0:01:
28]} 40. Nf4 {[%emt 0:00:48]} Qf5+ {[%emt 0:04:26]} 41. g4 {[%emt 0:30:37]} Qe5
{[%emt 0:04:07]} 42. b4 {[%emt 0:00:00]} Ne4 {[%emt 0:06:51]} 43. Nd3 {[%emt 0:
00:00]} Qd5 {[%emt 0:01:54]} 44. Kh2 {[%emt 0:00:00]} Qd4 {[%emt 0:02:42]} 45.
Kg2 {[%emt 0:00:00]} Nd2 {[%emt 0:07:17]} 46. Qe2 {[%emt 0:00:00]} Qd5+ {
[%emt 0:01:25]} 47. Kg3 {[%emt 0:00:00]} Ne4+ {[%emt 0:00:18]} 48. Kf4 {
[%emt 0:00:00]} g5+ {[%emt 0:06:37]} 49. hxg5 {[%emt 0:00:00]} Nxg5 {[%emt 0:
00:02]} 50. Qe5+ {[%emt 0:00:00]} Qxe5+ {[%emt 0:00:03]} 51. Kxe5 {[%emt 0:00:
00]} Nf7+ {[%emt 0:01:55]} 52. Ke6 {[%emt 0:00:00]} b6 {[%emt 0:00:15]} 53. Nb2
{[%emt 0:00:00]} Nh6 {[%emt 0:01:31]} 54. Kd6 {[%emt 0:00:00]} c5 {[%emt 0:02:
12]} 55. b5 {[%emt 0:00:00]} Nxg4 {[%emt 0:00:06]} 56. Nc4 {[%emt 0:00:59]} Nf6
{[%emt 0:00:24]} 57. Nxb6 {[%emt 0:00:29]} Ne4+ {[%emt 0:00:08]} 58. Kc6 {
[%emt 0:00:58]} 1/2-1/2